[Event "Early-Titled-Tuesday-Blitz-July-09-2024"]
[Site "Chess.com"]
[Date "2024.07.09"]
[Round "5"]
[White "Didici"]
[Black "dropstoneDP"]
[Result "0-1"]
[WhiteElo "2751"]
[BlackElo "3036"]
[TimeControl "180+1"]
[EndTime "8:58:21 PDT"]
[Termination "dropstoneDP won on time"]

1. e4 {[%clk 0:03:00.9]} 1... e5 {[%clk 0:03:00.1]} 2. Nf3 {[%clk 0:02:59]} 2...
Nf6 {[%clk 0:03:00.5]} 3. Nxe5 {[%clk 0:02:55.9]} 3... d6 {[%clk 0:03:00.3]} 4.
Nf3 {[%clk 0:02:55.4]} 4... Nxe4 {[%clk 0:03:00.7]} 5. Nc3 {[%clk 0:02:46.2]}
5... Nf6 {[%clk 0:02:59.2]} 6. d4 {[%clk 0:02:45.8]} 6... Be7 {[%clk 0:02:59.5]}
7. Bd3 {[%clk 0:02:45]} 7... Nc6 {[%clk 0:02:59]} 8. h3 {[%clk 0:02:44.6]} 8...
Nb4 {[%clk 0:02:58.5]} 9. Bb5+ {[%clk 0:02:42.9]} 9... c6 {[%clk 0:02:56.4]} 10.
Ba4 {[%clk 0:02:43.1]} 10... O-O {[%clk 0:02:56.7]} 11. O-O {[%clk 0:02:42.7]}
11... Re8 {[%clk 0:02:56.6]} 12. a3 {[%clk 0:02:42.4]} 12... Nbd5 {[%clk
0:02:56.5]} 13. Nxd5 {[%clk 0:02:42.7]} 13... Nxd5 {[%clk 0:02:56.5]} 14. c4
{[%clk 0:02:43.1]} 14... Nb6 {[%clk 0:02:56.9]} 15. Bc2 {[%clk 0:02:40.8]} 15...
Bf6 {[%clk 0:02:48.5]} 16. Rb1 {[%clk 0:02:34.2]} 16... g6 {[%clk 0:02:46.1]}
17. b3 {[%clk 0:02:33]} 17... d5 {[%clk 0:02:45.9]} 18. c5 {[%clk 0:02:32.9]}
18... Nd7 {[%clk 0:02:46.4]} 19. Bf4 {[%clk 0:02:32.8]} 19... Nf8 {[%clk
0:02:45.3]} 20. Qd2 {[%clk 0:02:28.5]} 20... Ne6 {[%clk 0:02:45.4]} 21. Bd6
{[%clk 0:02:28.1]} 21... Ng5 {[%clk 0:02:35.1]} 22. Nxg5 {[%clk 0:02:25.3]}
22... Bxg5 {[%clk 0:02:36]} 23. f4 {[%clk 0:02:25.7]} 23... Be7 {[%clk
0:02:32.5]} 24. Bxe7 {[%clk 0:02:24.6]} 24... Qxe7 {[%clk 0:02:30.4]} 25. Rbe1
{[%clk 0:02:23.6]} 25... Qf8 {[%clk 0:02:29.6]} 26. Rxe8 {[%clk 0:02:18.9]}
26... Qxe8 {[%clk 0:02:30.5]} 27. f5 {[%clk 0:02:19.6]} 27... Bd7 {[%clk
0:02:03.5]} 28. f6 {[%clk 0:02:05]} 28... Qf8 {[%clk 0:02:02.8]} 29. Re1 {[%clk
0:02:01.6]} 29... Re8 {[%clk 0:02:01.8]} 30. b4 {[%clk 0:01:57.1]} 30... Rxe1+
{[%clk 0:01:46]} 31. Qxe1 {[%clk 0:01:58]} 31... Qh6 {[%clk 0:01:42.2]} 32. Qg3
{[%clk 0:01:28.6]} 32... Be8 {[%clk 0:01:25.1]} 33. Qe5 {[%clk 0:01:19.1]} 33...
Qf8 {[%clk 0:00:58.6]} 34. Qc7 {[%clk 0:01:18.8]} 34... Qh6 {[%clk 0:00:56.2]}
35. Qe5 {[%clk 0:01:18.7]} 35... Qf8 {[%clk 0:00:55.5]} 36. Qb8 {[%clk
0:01:09.6]} 36... h5 {[%clk 0:00:55.1]} 37. Qxb7 {[%clk 0:01:09]} 37... Qh6
{[%clk 0:00:54.7]} 38. Qb8 {[%clk 0:01:01.3]} 38... Qe3+ {[%clk 0:00:54.4]} 39.
Kh2 {[%clk 0:01:01]} 39... Kh7 {[%clk 0:00:54.5]} 40. Qe5 {[%clk 0:00:56]} 40...
Qh6 {[%clk 0:00:49.3]} 41. Bd3 {[%clk 0:00:13.1]} 41... h4 {[%clk 0:00:42.4]}
42. Kg1 {[%clk 0:00:03.7]} 42... Bd7 {[%clk 0:00:39.3]} 43. Kf2 {[%clk
0:00:02.2]} 43... Qd2+ {[%clk 0:00:37.7]} 44. Be2 {[%clk 0:00:02.6]} 44... Be6
{[%clk 0:00:26.6]} 45. Qe3 {[%clk 0:00:02.6]} 45... Qb2 {[%clk 0:00:26.9]} 46.
Qf4 {[%clk 0:00:01.3]} 46... Kg8 {[%clk 0:00:25.7]} 47. Qxh4 {[%clk 0:00:01.4]}
47... Qd2 {[%clk 0:00:25.2]} 0-1

[Event "Early-Titled-Tuesday-Blitz-July-09-2024"]
[Site "Chess.com"]
[Date "2024.07.09"]
[Round "5"]
[White "Massakru"]
[Black "Ganziitoo"]
[Result "0-1"]
[WhiteElo "2376"]
[BlackElo "2211"]
[TimeControl "180+1"]
[EndTime "8:58:22 PDT"]
[Termination "Ganziitoo won by resignation"]

1. e4 {[%clk 0:03:00.9]} 1... d6 {[%clk 0:02:57]} 2. d4 {[%clk 0:03:00.8]} 2...
Nf6 {[%clk 0:02:57.4]} 3. Nc3 {[%clk 0:03:00.1]} 3... Nbd7 {[%clk 0:02:57.8]} 4.
Nf3 {[%clk 0:02:55.5]} 4... e5 {[%clk 0:02:58.7]} 5. Bc4 {[%clk 0:02:54.5]} 5...
Be7 {[%clk 0:02:58.8]} 6. O-O {[%clk 0:02:54.2]} 6... O-O {[%clk 0:02:59]} 7.
Qe2 {[%clk 0:02:54.4]} 7... c6 {[%clk 0:02:59.5]} 8. Rd1 {[%clk 0:02:54.1]} 8...
b5 {[%clk 0:02:59.1]} 9. dxe5 {[%clk 0:02:53.5]} 9... dxe5 {[%clk 0:02:58.1]}
10. Bb3 {[%clk 0:02:51]} 10... Qc7 {[%clk 0:02:58.2]} 11. Bg5 {[%clk 0:02:47.1]}
11... Nc5 {[%clk 0:02:56.1]} 12. h3 {[%clk 0:02:42.5]} 12... a5 {[%clk
0:02:54.4]} 13. a4 {[%clk 0:02:42.2]} 13... Nxb3 {[%clk 0:02:54.4]} 14. cxb3
{[%clk 0:02:41.9]} 14... b4 {[%clk 0:02:51.4]} 15. Na2 {[%clk 0:02:38.4]} 15...
Be6 {[%clk 0:02:48.6]} 16. Qe3 {[%clk 0:02:33]} 16... h6 {[%clk 0:02:46.9]} 17.
Bh4 {[%clk 0:02:32]} 17... Rfd8 {[%clk 0:02:42.4]} 18. Bg3 {[%clk 0:02:27.9]}
18... Nd7 {[%clk 0:02:41.3]} 19. Rac1 {[%clk 0:02:19.9]} 19... Bf6 {[%clk
0:02:26.4]} 20. Rd3 {[%clk 0:02:12.2]} 20... Rdc8 {[%clk 0:02:21.2]} 21. Rcd1
{[%clk 0:02:08.7]} 21... Nb6 {[%clk 0:02:18.5]} 22. Nxe5 {[%clk 0:02:02.4]}
22... Bxe5 {[%clk 0:02:11.7]} 23. Bxe5 {[%clk 0:02:02.6]} 23... Qxe5 {[%clk
0:02:12.6]} 24. Qxb6 {[%clk 0:02:02.9]} 24... Qxe4 {[%clk 0:02:10.8]} 25. Nc1
{[%clk 0:01:52.7]} 25... Bd5 {[%clk 0:02:04]} 26. f3 {[%clk 0:01:52.8]} 26...
Qe5 {[%clk 0:02:01.9]} 27. Qd4 {[%clk 0:01:48.7]} 27... Re8 {[%clk 0:01:58.6]}
28. Qxe5 {[%clk 0:01:41.3]} 28... Rxe5 {[%clk 0:01:59.5]} 29. f4 {[%clk
0:01:31.2]} 29... Re4 {[%clk 0:01:57.3]} 30. Rd4 {[%clk 0:01:31.4]} 30... Rae8
{[%clk 0:01:57.1]} 31. Rxe4 {[%clk 0:01:31.3]} 31... Rxe4 {[%clk 0:01:58]} 32.
g3 {[%clk 0:01:09.9]} 32... Re3 {[%clk 0:01:57.5]} 33. Kh2 {[%clk 0:00:58.4]}
33... f6 {[%clk 0:01:31]} 34. h4 {[%clk 0:00:53.3]} 34... h5 {[%clk 0:01:28.5]}
35. Rg1 {[%clk 0:00:36.8]} 35... Kf7 {[%clk 0:01:26.1]} 36. g4 {[%clk
0:00:30.5]} 36... hxg4 {[%clk 0:01:22.4]} 37. Rxg4 {[%clk 0:00:31.4]} 37... Rf3
{[%clk 0:00:56.1]} 38. Kg1 {[%clk 0:00:19]} 38... Rh3 {[%clk 0:00:52.8]} 39. Ne2
{[%clk 0:00:15.7]} 39... Rxb3 {[%clk 0:00:48.5]} 40. Nd4 {[%clk 0:00:14.2]}
40... Rxb2 {[%clk 0:00:46.3]} 41. h5 {[%clk 0:00:14.3]} 41... Rd2 {[%clk
0:00:43.1]} 42. Nf5 {[%clk 0:00:14.5]} 42... b3 {[%clk 0:00:35.8]} 43. Rxg7+
{[%clk 0:00:14.7]} 43... Ke6 {[%clk 0:00:29.6]} 44. Ne3 {[%clk 0:00:15.1]} 44...
Re2 {[%clk 0:00:22.9]} 45. f5+ {[%clk 0:00:10.7]} 45... Kd6 {[%clk 0:00:20.6]}
46. Nxd5 {[%clk 0:00:09.8]} 46... cxd5 {[%clk 0:00:21.1]} 47. Rb7 {[%clk
0:00:10]} 47... b2 {[%clk 0:00:20.4]} 48. Kf1 {[%clk 0:00:10.6]} 48... Rc2
{[%clk 0:00:20.3]} 49. Rb6+ {[%clk 0:00:08.5]} 49... Kc5 {[%clk 0:00:20.1]} 50.
Rb5+ {[%clk 0:00:08.4]} 50... Kd4 {[%clk 0:00:20.1]} 0-1

[Event "Early-Titled-Tuesday-Blitz-July-09-2024"]
[Site "Chess.com"]
[Date "2024.07.09"]
[Round "5"]
[White "BillCoe"]
[Black "Chesstiger64"]
[Result "0-1"]
[WhiteElo "2057"]
[BlackElo "2367"]
[TimeControl "180+1"]
[EndTime "8:58:22 PDT"]
[Termination "Chesstiger64 won on time"]

1. e4 {[%clk 0:03:00.9]} 1... c5 {[%clk 0:02:56.4]} 2. Nf3 {[%clk 0:03:01]} 2...
e6 {[%clk 0:02:56]} 3. d4 {[%clk 0:03:00.9]} 3... cxd4 {[%clk 0:02:56]} 4. Nxd4
{[%clk 0:03:01.6]} 4... Nf6 {[%clk 0:02:56.1]} 5. Bd3 {[%clk 0:03:01.6]} 5...
Nc6 {[%clk 0:02:54.6]} 6. Nb5 {[%clk 0:02:59.4]} 6... a6 {[%clk 0:02:52.6]} 7.
N5c3 {[%clk 0:02:58.8]} 7... d5 {[%clk 0:02:48.6]} 8. exd5 {[%clk 0:02:58.6]}
8... Nxd5 {[%clk 0:02:48.7]} 9. Nxd5 {[%clk 0:02:55.6]} 9... Qxd5 {[%clk
0:02:41.7]} 10. O-O {[%clk 0:02:56.5]} 10... Be7 {[%clk 0:02:40.7]} 11. Nc3
{[%clk 0:02:55.5]} 11... Qd7 {[%clk 0:02:40.5]} 12. Re1 {[%clk 0:02:54.7]} 12...
b5 {[%clk 0:02:40.4]} 13. Bf4 {[%clk 0:02:50.7]} 13... Bb7 {[%clk 0:02:40.3]}
14. Be4 {[%clk 0:02:46.7]} 14... Rd8 {[%clk 0:02:24.3]} 15. Qxd7+ {[%clk
0:02:44.9]} 15... Rxd7 {[%clk 0:02:23]} 16. Rad1 {[%clk 0:02:44.8]} 16... Bf6
{[%clk 0:02:19.3]} 17. Rxd7 {[%clk 0:02:26.7]} 17... Kxd7 {[%clk 0:02:17.9]} 18.
Rd1+ {[%clk 0:02:25.4]} 18... Kc8 {[%clk 0:02:18]} 19. Rd6 {[%clk 0:02:11.1]}
19... Rd8 {[%clk 0:01:56.5]} 20. Rxd8+ {[%clk 0:01:57.1]} 20... Kxd8 {[%clk
0:01:52]} 21. Nd1 {[%clk 0:01:56.7]} 21... g6 {[%clk 0:01:49.8]} 22. c3 {[%clk
0:01:56.1]} 22... Kd7 {[%clk 0:01:48.6]} 23. Kf1 {[%clk 0:01:51.6]} 23... Na5
{[%clk 0:01:47.8]} 24. Bxb7 {[%clk 0:01:48.2]} 24... Nxb7 {[%clk 0:01:48.7]} 25.
Ke2 {[%clk 0:01:43.4]} 25... e5 {[%clk 0:01:44.8]} 26. Bd2 {[%clk 0:01:37.8]}
26... Ke6 {[%clk 0:01:44.9]} 27. Ne3 {[%clk 0:01:38.2]} 27... Be7 {[%clk
0:01:44.5]} 28. f3 {[%clk 0:01:28.2]} 28... f5 {[%clk 0:01:44.4]} 29. b3 {[%clk
0:01:25.6]} 29... Nc5 {[%clk 0:01:44.2]} 30. c4 {[%clk 0:01:22.6]} 30... Bd6
{[%clk 0:01:40.8]} 31. cxb5 {[%clk 0:01:19.7]} 31... axb5 {[%clk 0:01:40.4]} 32.
g4 {[%clk 0:01:13.7]} 32... e4 {[%clk 0:01:38.9]} 33. gxf5+ {[%clk 0:01:12.6]}
33... gxf5 {[%clk 0:01:39.8]} 34. h3 {[%clk 0:01:04.9]} 34... h5 {[%clk
0:01:29.2]} 35. Be1 {[%clk 0:00:51.3]} 35... Bf4 {[%clk 0:01:20.9]} 36. a4
{[%clk 0:00:47.5]} 36... bxa4 {[%clk 0:01:16.7]} 37. bxa4 {[%clk 0:00:39.9]}
37... Nxa4 {[%clk 0:01:14.9]} 38. Bb4 {[%clk 0:00:31.5]} 38... Nb6 {[%clk
0:01:06.3]} 39. Ng2 {[%clk 0:00:31]} 39... Be5 {[%clk 0:01:05.3]} 40. fxe4
{[%clk 0:00:27.6]} 40... fxe4 {[%clk 0:01:04.1]} 41. Ne3 {[%clk 0:00:24.1]}
41... Nd5 {[%clk 0:01:03.4]} 42. Nxd5 {[%clk 0:00:19.7]} 42... Kxd5 {[%clk
0:01:03.6]} 43. Bd2 {[%clk 0:00:17.3]} 43... Bd4 {[%clk 0:01:03.4]} 44. Bg5
{[%clk 0:00:16.2]} 44... Ke5 {[%clk 0:01:02.6]} 45. h4 {[%clk 0:00:12]} 45...
Kf5 {[%clk 0:01:01]} 46. Kf1 {[%clk 0:00:09.3]} 46... Bf6 {[%clk 0:00:56.1]} 47.
Bd2 {[%clk 0:00:07.1]} 47... Bxh4 {[%clk 0:00:55.5]} 48. Kg2 {[%clk 0:00:07.4]}
48... Kg4 {[%clk 0:00:55.3]} 49. Bb4 {[%clk 0:00:05.8]} 49... Bg5 {[%clk
0:00:53.9]} 50. Bc5 {[%clk 0:00:05.4]} 50... Bf4 {[%clk 0:00:53.4]} 51. Bd4
{[%clk 0:00:05.4]} 51... h4 {[%clk 0:00:53.1]} 52. Bc5 {[%clk 0:00:05.7]} 52...
h3+ {[%clk 0:00:53.3]} 53. Kh1 {[%clk 0:00:04.4]} 53... Kf3 {[%clk 0:00:53.8]}
54. Bd4 {[%clk 0:00:04]} 54... Bg3 {[%clk 0:00:53.2]} 55. Bc5 {[%clk 0:00:03.5]}
55... Bf2 {[%clk 0:00:52.8]} 56. Bb4 {[%clk 0:00:03]} 56... Ke2 {[%clk
0:00:45.6]} 57. Kh2 {[%clk 0:00:02.7]} 57... Kd1 {[%clk 0:00:44.8]} 58. Kxh3
{[%clk 0:00:02.5]} 58... e3 {[%clk 0:00:45.2]} 59. Kg2 {[%clk 0:00:01.7]} 59...
Be1 {[%clk 0:00:45.4]} 60. Bc5 {[%clk 0:00:01.3]} 60... e2 {[%clk 0:00:45.5]}
0-1

[Event "Early-Titled-Tuesday-Blitz-July-09-2024"]
[Site "Chess.com"]
[Date "2024.07.09"]
[Round "5"]
[White "Adrian-thorsen"]
[Black "chess_blitz00"]
[Result "0-1"]
[WhiteElo "2316"]
[BlackElo "2515"]
[TimeControl "180+1"]
[EndTime "8:58:24 PDT"]
[Termination "chess_blitz00 won by checkmate"]

1. e4 {[%clk 0:03:00.9]} 1... b6 {[%clk 0:02:57.6]} 2. d4 {[%clk 0:02:59.1]}
2... Bb7 {[%clk 0:02:58.1]} 3. Nc3 {[%clk 0:02:58.4]} 3... e6 {[%clk 0:02:57.5]}
4. Bd3 {[%clk 0:02:58.6]} 4... Bb4 {[%clk 0:02:56.5]} 5. Ne2 {[%clk 0:02:58.3]}
5... Nf6 {[%clk 0:02:56.2]} 6. a3 {[%clk 0:02:57.6]} 6... Bxc3+ {[%clk
0:02:54.9]} 7. Nxc3 {[%clk 0:02:58.5]} 7... c5 {[%clk 0:02:54.1]} 8. dxc5 {[%clk
0:02:53.5]} 8... bxc5 {[%clk 0:02:54.2]} 9. e5 {[%clk 0:02:54.4]} 9... Nd5
{[%clk 0:02:52.5]} 10. Nxd5 {[%clk 0:02:54.4]} 10... Bxd5 {[%clk 0:02:52.7]} 11.
O-O {[%clk 0:02:55.3]} 11... Qh4 {[%clk 0:02:46]} 12. f4 {[%clk 0:02:41.6]}
12... O-O {[%clk 0:02:32.3]} 13. c4 {[%clk 0:02:37.5]} 13... Bb7 {[%clk
0:02:30]} 14. Be3 {[%clk 0:02:37.8]} 14... Qe7 {[%clk 0:02:22.8]} 15. Qh5 {[%clk
0:02:30.2]} 15... h6 {[%clk 0:02:00.6]} 16. f5 {[%clk 0:02:16.6]} 16... exf5
{[%clk 0:01:59.6]} 17. Bxh6 {[%clk 0:01:39.6]} 17... Qxe5 {[%clk 0:01:30]} 18.
Rxf5 {[%clk 0:00:24.9]} 18... Qxb2 {[%clk 0:01:21.3]} 19. Rg5 {[%clk 0:00:10.1]}
19... Qxa1+ {[%clk 0:01:12.6]} 20. Bf1 {[%clk 0:00:04.3]} 20... Qd4+ {[%clk
0:01:01.7]} 21. Kh1 {[%clk 0:00:04]} 21... Re8 {[%clk 0:00:13.2]} 22. Rxg7+
{[%clk 0:00:03.8]} 22... Qxg7 {[%clk 0:00:13.8]} 23. Bxg7 {[%clk 0:00:04.7]}
23... Kxg7 {[%clk 0:00:14.7]} 24. Qg5+ {[%clk 0:00:05.3]} 24... Kf8 {[%clk
0:00:14.3]} 25. h3 {[%clk 0:00:05.9]} 25... d6 {[%clk 0:00:12.2]} 26. Qh6+
{[%clk 0:00:06.1]} 26... Ke7 {[%clk 0:00:12.3]} 27. Qe3+ {[%clk 0:00:06.7]}
27... Kd7 {[%clk 0:00:11.2]} 28. Qf4 {[%clk 0:00:07.3]} 28... Re7 {[%clk
0:00:10.8]} 29. Kg1 {[%clk 0:00:07.6]} 29... Nc6 {[%clk 0:00:11.1]} 30. Qf5+
{[%clk 0:00:08]} 30... Kc7 {[%clk 0:00:10]} 31. Qf6 {[%clk 0:00:08.3]} 31...
Rae8 {[%clk 0:00:10.4]} 32. Qb2 {[%clk 0:00:07.6]} 32... Nd4 {[%clk 0:00:10.2]}
33. Qf2 {[%clk 0:00:07.2]} 33... f5 {[%clk 0:00:09.7]} 34. h4 {[%clk 0:00:07.4]}
34... Rg7 {[%clk 0:00:09.4]} 35. Qf4 {[%clk 0:00:07]} 35... Reg8 {[%clk
0:00:08.8]} 36. Qf2 {[%clk 0:00:06.4]} 36... Nf3+ {[%clk 0:00:06.8]} 37. Kh1
{[%clk 0:00:06.7]} 37... Nd4 {[%clk 0:00:06.4]} 38. Kh2 {[%clk 0:00:04]} 38...
Rg4 {[%clk 0:00:06.5]} 39. h5 {[%clk 0:00:02.6]} 39... Rh8 {[%clk 0:00:06.2]}
40. Qxf5 {[%clk 0:00:02]} 40... Nxf5 {[%clk 0:00:06]} 41. Kh3 {[%clk 0:00:02.6]}
41... Rh4# {[%clk 0:00:05.9]} 0-1

[Event "Early-Titled-Tuesday-Blitz-July-09-2024"]
[Site "Chess.com"]
[Date "2024.07.09"]
[Round "5"]
[White "AlbusSevresPotter"]
[Black "Juicy_Fork"]
[Result "1-0"]
[WhiteElo "2611"]
[BlackElo "2450"]
[TimeControl "180+1"]
[EndTime "8:58:26 PDT"]
[Termination "AlbusSevresPotter won on time"]

1. e4 {[%clk 0:03:00.9]} 1... e5 {[%clk 0:02:56.2]} 2. Nf3 {[%clk 0:02:59]} 2...
Nc6 {[%clk 0:02:55.3]} 3. Bb5 {[%clk 0:02:58]} 3... a6 {[%clk 0:02:54.1]} 4. Ba4
{[%clk 0:02:56.4]} 4... d6 {[%clk 0:02:54.4]} 5. O-O {[%clk 0:02:54.8]} 5... Bd7
{[%clk 0:02:53.7]} 6. c4 {[%clk 0:02:54.1]} 6... g6 {[%clk 0:02:46.1]} 7. Nc3
{[%clk 0:02:49.1]} 7... Bg7 {[%clk 0:02:43.9]} 8. Bxc6 {[%clk 0:02:47.7]} 8...
bxc6 {[%clk 0:02:42.9]} 9. d4 {[%clk 0:02:48.6]} 9... exd4 {[%clk 0:02:40.3]}
10. Nxd4 {[%clk 0:02:49.5]} 10... c5 {[%clk 0:02:40.4]} 11. Nc2 {[%clk
0:02:44.4]} 11... Ne7 {[%clk 0:02:39.4]} 12. Qd3 {[%clk 0:02:38.7]} 12... O-O
{[%clk 0:02:37.9]} 13. b3 {[%clk 0:02:35.9]} 13... Nc6 {[%clk 0:02:26.5]} 14.
Bb2 {[%clk 0:02:35.8]} 14... Re8 {[%clk 0:02:23.9]} 15. Rae1 {[%clk 0:02:31.4]}
15... Ne5 {[%clk 0:02:04.8]} 16. Qd2 {[%clk 0:02:31]} 16... Bc6 {[%clk 0:02:01]}
17. f4 {[%clk 0:02:30.1]} 17... Ng4 {[%clk 0:01:56]} 18. h3 {[%clk 0:02:25.2]}
18... Nf6 {[%clk 0:01:54.6]} 19. Nd5 {[%clk 0:02:19.7]} 19... Nxe4 {[%clk
0:01:45.7]} 20. Bxg7 {[%clk 0:02:20.6]} 20... Nxd2 {[%clk 0:01:30]} 21. Rxe8+
{[%clk 0:02:06]} 21... Bxe8 {[%clk 0:01:25.7]} 22. Bf6 {[%clk 0:02:06.2]} 22...
Qd7 {[%clk 0:01:19]} 23. Re1 {[%clk 0:02:06.6]} 23... Rb8 {[%clk 0:01:03.7]} 24.
Bc3 {[%clk 0:01:58]} 24... Nf3+ {[%clk 0:00:55.6]} 25. gxf3 {[%clk 0:01:50.1]}
25... Qxh3 {[%clk 0:00:52.4]} 26. Nce3 {[%clk 0:01:26.7]} 26... Bd7 {[%clk
0:00:35.9]} 27. Kf2 {[%clk 0:00:48.7]} 27... Be6 {[%clk 0:00:22.3]} 28. Nf6+
{[%clk 0:00:37.5]} 28... Kf8 {[%clk 0:00:21]} 29. f5 {[%clk 0:00:38.4]} 29...
Qh4+ {[%clk 0:00:08.5]} 30. Kg2 {[%clk 0:00:32.2]} 30... gxf5 {[%clk 0:00:04.6]}
31. Rh1 {[%clk 0:00:09.8]} 31... Qg5+ {[%clk 0:00:04]} 32. Kf2 {[%clk
0:00:10.7]} 32... Ke7 {[%clk 0:00:03.5]} 33. Nxh7 {[%clk 0:00:10.7]} 33... Qg6
{[%clk 0:00:02.4]} 34. Nf6 {[%clk 0:00:05.2]} 34... f4 {[%clk 0:00:03]} 35.
Ned5+ {[%clk 0:00:01.4]} 35... Bxd5 {[%clk 0:00:01.4]} 36. Nxd5+ {[%clk
0:00:02.3]} 36... Kd7 {[%clk 0:00:02.3]} 37. Re1 {[%clk 0:00:02.7]} 37... Qc2+
{[%clk 0:00:02.3]} 38. Re2 {[%clk 0:00:02.8]} 1-0

[Event "Early-Titled-Tuesday-Blitz-July-09-2024"]
[Site "Chess.com"]
[Date "2024.07.09"]
[Round "5"]
[White "JoliyRoger"]
[Black "Vision_64"]
[Result "0-1"]
[WhiteElo "2414"]
[BlackElo "2315"]
[TimeControl "180+1"]
[EndTime "8:58:26 PDT"]
[Termination "Vision_64 won on time"]

1. d4 {[%clk 0:03:00.6]} 1... Nf6 {[%clk 0:02:56.3]} 2. c4 {[%clk 0:03:00]} 2...
c5 {[%clk 0:02:52.7]} 3. d5 {[%clk 0:02:58.2]} 3... b5 {[%clk 0:02:52.5]} 4.
cxb5 {[%clk 0:02:55.5]} 4... a6 {[%clk 0:02:52.4]} 5. e3 {[%clk 0:02:55]} 5...
d6 {[%clk 0:02:50.2]} 6. Nc3 {[%clk 0:02:52.7]} 6... g6 {[%clk 0:02:48.9]} 7. a4
{[%clk 0:02:52.2]} 7... Bg7 {[%clk 0:02:48]} 8. Bc4 {[%clk 0:02:51.9]} 8... O-O
{[%clk 0:02:44]} 9. Nge2 {[%clk 0:02:52.2]} 9... Nbd7 {[%clk 0:02:43.2]} 10. O-O
{[%clk 0:02:49.6]} 10... Nb6 {[%clk 0:02:42]} 11. b3 {[%clk 0:02:46.3]} 11...
axb5 {[%clk 0:02:30.7]} 12. Bxb5 {[%clk 0:02:35.6]} 12... Nfxd5 {[%clk
0:02:15.5]} 13. Bb2 {[%clk 0:02:35.4]} 13... Nb4 {[%clk 0:02:11.3]} 14. Qd2
{[%clk 0:02:30.2]} 14... Be6 {[%clk 0:02:09.4]} 15. Nc1 {[%clk 0:02:12.8]} 15...
Nd7 {[%clk 0:02:00]} 16. N3a2 {[%clk 0:01:59.5]} 16... Bxb2 {[%clk 0:01:55.2]}
17. Qxb2 {[%clk 0:01:55.9]} 17... Nxa2 {[%clk 0:01:48.7]} 18. Nxa2 {[%clk
0:01:56.4]} 18... Qa5 {[%clk 0:01:35.8]} 19. Rac1 {[%clk 0:01:44.8]} 19... Rfb8
{[%clk 0:01:32.3]} 20. Nc3 {[%clk 0:01:06.4]} 20... Ne5 {[%clk 0:01:24.3]} 21.
f4 {[%clk 0:00:41.2]} 21... Nc4 {[%clk 0:01:22.1]} 22. bxc4 {[%clk 0:00:38.3]}
22... Bxc4 {[%clk 0:01:17.7]} 23. Rfe1 {[%clk 0:00:28.4]} 23... d5 {[%clk
0:01:05.1]} 24. Qc2 {[%clk 0:00:28.1]} 24... Bxb5 {[%clk 0:01:03.3]} 25. axb5
{[%clk 0:00:25.8]} 25... d4 {[%clk 0:01:02.5]} 26. exd4 {[%clk 0:00:15.2]} 26...
cxd4 {[%clk 0:01:02.5]} 27. Nd5 {[%clk 0:00:15.6]} 27... e6 {[%clk 0:00:59.4]}
28. Nf6+ {[%clk 0:00:13.2]} 28... Kg7 {[%clk 0:00:57.7]} 29. Ng4 {[%clk
0:00:11.6]} 29... Qxb5 {[%clk 0:00:54.4]} 30. Qe4 {[%clk 0:00:11.7]} 30... Rd8
{[%clk 0:00:50.3]} 31. Rb1 {[%clk 0:00:08.4]} 31... Qd5 {[%clk 0:00:48.3]} 32.
Qe5+ {[%clk 0:00:08.1]} 32... Qxe5 {[%clk 0:00:45.4]} 33. Nxe5 {[%clk
0:00:08.4]} 33... d3 {[%clk 0:00:36.4]} 34. Rb7 {[%clk 0:00:07.4]} 34... d2
{[%clk 0:00:33]} 35. Rd1 {[%clk 0:00:07.8]} 35... Rac8 {[%clk 0:00:30.5]} 36.
Kf2 {[%clk 0:00:06.9]} 36... Rd4 {[%clk 0:00:26.3]} 37. g3 {[%clk 0:00:06]}
37... Rc1 {[%clk 0:00:21.3]} 38. Ke2 {[%clk 0:00:05.1]} 38... Rc2 {[%clk
0:00:21.2]} 39. Rxf7+ {[%clk 0:00:01.6]} 39... Kg8 {[%clk 0:00:21.2]} 0-1

[Event "Early-Titled-Tuesday-Blitz-July-09-2024"]
[Site "Chess.com"]
[Date "2024.07.09"]
[Round "5"]
[White "karinachess1"]
[Black "Nemegejas"]
[Result "0-1"]
[WhiteElo "2688"]
[BlackElo "2942"]
[TimeControl "180+1"]
[EndTime "8:58:27 PDT"]
[Termination "Nemegejas won by checkmate"]

1. d4 {[%clk 0:03:00.9]} 1... Nf6 {[%clk 0:02:58.2]} 2. c4 {[%clk 0:03:01]} 2...
g6 {[%clk 0:02:57.3]} 3. Nc3 {[%clk 0:03:00.7]} 3... Bg7 {[%clk 0:02:57.2]} 4.
Nf3 {[%clk 0:03:00.8]} 4... O-O {[%clk 0:02:56.7]} 5. e4 {[%clk 0:02:58.2]} 5...
d6 {[%clk 0:02:56.1]} 6. Be2 {[%clk 0:02:58.3]} 6... e5 {[%clk 0:02:54.7]} 7.
O-O {[%clk 0:02:57.4]} 7... Nc6 {[%clk 0:02:54.8]} 8. d5 {[%clk 0:02:56.9]} 8...
Ne7 {[%clk 0:02:55.2]} 9. Ne1 {[%clk 0:02:57]} 9... Nd7 {[%clk 0:02:55.1]} 10.
f3 {[%clk 0:02:57.5]} 10... f5 {[%clk 0:02:53.4]} 11. Be3 {[%clk 0:02:58.1]}
11... f4 {[%clk 0:02:52.5]} 12. Bf2 {[%clk 0:02:58.4]} 12... g5 {[%clk
0:02:52.5]} 13. Nd3 {[%clk 0:02:57.9]} 13... Nf6 {[%clk 0:02:45.6]} 14. c5
{[%clk 0:02:57.3]} 14... Rf7 {[%clk 0:02:42.7]} 15. Rc1 {[%clk 0:02:56.5]} 15...
Bd7 {[%clk 0:02:15.2]} 16. a4 {[%clk 0:02:44]} 16... Bf8 {[%clk 0:01:45]} 17.
cxd6 {[%clk 0:02:37.6]} 17... cxd6 {[%clk 0:01:45.9]} 18. Nb5 {[%clk 0:02:38.2]}
18... Ng6 {[%clk 0:01:30.5]} 19. Nc7 {[%clk 0:02:34.1]} 19... Bxa4 {[%clk
0:01:30]} 20. Qxa4 {[%clk 0:02:26.6]} 20... Rxc7 {[%clk 0:01:30]} 21. Rxc7
{[%clk 0:02:21.8]} 21... Qxc7 {[%clk 0:01:30.9]} 22. Rc1 {[%clk 0:02:22.2]}
22... Qg7 {[%clk 0:01:03.3]} 23. Qa5 {[%clk 0:02:19.1]} 23... h5 {[%clk
0:00:56]} 24. Rc7 {[%clk 0:02:18.4]} 24... Be7 {[%clk 0:00:56.3]} 25. Rxb7
{[%clk 0:02:14.3]} 25... g4 {[%clk 0:00:54]} 26. Rxa7 {[%clk 0:02:09.1]} 26...
Rxa7 {[%clk 0:00:41.1]} 27. Qxa7 {[%clk 0:02:10]} 27... g3 {[%clk 0:00:34.2]}
28. hxg3 {[%clk 0:01:53.2]} 28... fxg3 {[%clk 0:00:35.1]} 29. Bxg3 {[%clk
0:01:53.5]} 29... h4 {[%clk 0:00:35.7]} 30. Bf2 {[%clk 0:01:38.2]} 30... Nh5
{[%clk 0:00:34.9]} 31. Bf1 {[%clk 0:01:34.3]} 31... Qh6 {[%clk 0:00:32.5]} 32.
Qd7 {[%clk 0:01:12.8]} 32... Ng3 {[%clk 0:00:32.5]} 33. Qg4 {[%clk 0:00:47]}
33... Bg5 {[%clk 0:00:32]} 34. Qe6+ {[%clk 0:00:38.5]} 34... Kg7 {[%clk
0:00:28.1]} 35. Qxd6 {[%clk 0:00:37.2]} 35... Be3 {[%clk 0:00:28.1]} 36. Qd7+
{[%clk 0:00:19]} 36... Kh8 {[%clk 0:00:25.9]} 37. Qc8+ {[%clk 0:00:17.6]} 37...
Kh7 {[%clk 0:00:24.5]} 38. Qc7+ {[%clk 0:00:17.9]} 38... Kg8 {[%clk 0:00:23.6]}
39. d6 {[%clk 0:00:15.4]} 39... h3 {[%clk 0:00:22]} 40. Qc8+ {[%clk 0:00:11.5]}
40... Kg7 {[%clk 0:00:22.6]} 41. Qxh3 {[%clk 0:00:12.2]} 41... Qg5 {[%clk
0:00:14.2]} 42. d7 {[%clk 0:00:10.1]} 42... Bxf2+ {[%clk 0:00:12.1]} 43. Nxf2
{[%clk 0:00:09.6]} 43... Nxf1 {[%clk 0:00:07.3]} 44. Kxf1 {[%clk 0:00:06]} 44...
Qc1+ {[%clk 0:00:07.6]} 45. Ke2 {[%clk 0:00:05.9]} 45... Nf4# {[%clk 0:00:08.2]}
0-1